fUST/lending_fUST_20250617
["ID","MTS","AMOUNT","RATE_DAILY","PERIOD"]
[366223947,1750133438045,-642.09313022,0.00023993,2]
[366223948,1750133438056,-642.09313022,0.00023993,2]
[366223949,1750133438067,-642.09313022,0.00023993,2]
[366223950,1750133438077,-642.09313022,0.00023993,2]
[366223951,1750133438088,-642.09313022,0.00023993,2]
[366223952,1750133438098,-642.09313022,0.00023993,2]
[366223953,1750133438108,-279.89879568,0.00023999,2]
[366223954,1750133438118,-21905.52177355,0.00024,60]
[366223955,1750133438183,-5508.86943147,0.00024,60]
[366223972,1750133440435,-437.01982406,0.00023314,2]
[366224493,1750133446344,-62.98017594,0.00023314,2]
[366224494,1750133446354,-209.92409676,0.00023999,2]
[366224495,1750133446364,-7651.49892626,0.00024,60]
[366224496,1750133446508,-723.49501106,0.00024,2]
[366224497,1750133446518,-5535.94,0.00024,7]
[366224498,1750133446528,-3214.0,0.00024,7]
[366224499,1750133446538,-763.74,0.00024,7]
[366224500,1750133446549,-266.00197053,0.00024,42]
[366224501,1750133446559,-155.18872875,0.00024,3]
[366224502,1750133446569,-1814.20721023,0.00024,3]
[366224503,1750133446579,-317.0,0.00024,3]
[366224504,1750133446589,-329.18454934,0.00024,3]
[366224505,1750133446599,-10006.14418551,0.00024,2]
[366224506,1750133446609,-155.0,0.00024,2]
[366224507,1750133446619,-151.0,0.00024005,7]
[366224508,1750133446628,-151.0,0.00024005,7]
[366224509,1750133446639,-168.0,0.00024021,2]
[366224510,1750133446649,-172.33624099,0.00024055,2]
[366224511,1750133446658,-255.12945444,0.00024076,2]
[366224512,1750133446668,-169.7907339,0.00024086,2]
[366224513,1750133446678,-507.470537,0.00024151,2]
[366224514,1750133446688,-160.0,0.00024151,2]
[366224515,1750133446698,-236.97,0.00024168,11]
[366224516,1750133446707,-151.0,0.00024176,7]
[366224517,1750133446717,-215.524598,0.00024176,7]
[366224518,1750133446727,-151.0,0.00024176,7]
[366224519,1750133446742,-5029.61244942,0.00024176,2]
[366224520,1750133446752,-5000.0,0.00024176,2]
[366224521,1750133446762,-5000.0,0.00024176,2]
[366224522,1750133446772,-255.12945441,0.00024196,2]
[366224523,1750133446781,-640.0,0.000242,2]
[366224524,1750133446791,-169.7907339,0.00024283,2]
[366224526,1750133446800,-215.0738,0.00024284,2]
[366224528,1750133446810,-255.12945441,0.00024316,2]
[366224530,1750133446819,-172.33624099,0.00024356,2]
[366224532,1750133446829,-1242.06,0.00024416,3]
[366224534,1750133446839,-621.03,0.00024416,3]
[366224535,1750133446849,-310.51,0.00024416,3]
[366224537,1750133446859,-155.26,0.00024416,3]
[366224539,1750133446869,-465.79,0.00024416,3]
[366224541,1750133446879,-631.39,0.00024416,10]
[366224543,1750133446889,-243.0,0.00024425,2]
[366224545,1750133446899,-58793.87832813,0.00024426,2]
[366224548,1750133446909,-151.0,0.00024426,7]
[366224549,1750133446919,-151.0,0.00024426,7]
[366224551,1750133446929,-225.666574,0.00024426,7]
[366224553,1750133446939,-151.0,0.00024426,7]
[366224555,1750133446949,-835.82910252,0.00024432,3]
[366224558,1750133446959,-160.0,0.00024432,3]
[366224560,1750133446969,-255.12945441,0.00024436,2]
[366224562,1750133446981,-168.0,0.00024471,2]
[366224564,1750133446991,-214.0953081,0.00024472,7]
[366224565,1750133447001,-3695.38,0.00024473,2]
[366224567,1750133447011,-169.7907339,0.00024479,2]
[366224569,1750133447021,-2140.30074508,0.000245,7]
[366224572,1750133447033,-5000.0,0.00024518,2]
[366224574,1750133447043,-155.0,0.00024548,2]
[366224576,1750133447053,-283.40849503,0.00024556,3]
[366224578,1750133447063,-255.12945441,0.00024556,2]
[366224579,1750133447073,-15069.36639688,0.00024556,2]
[366224582,1750133447084,-151.0,0.00024557,7]
[366224583,1750133447094,-151.0,0.00024557,7]
[366224586,1750133447104,-151.0,0.00024557,7]
[366224587,1750133447114,-151.0,0.00024557,7]
[366224590,1750133447124,-151.0,0.00024557,7]
[366224591,1750133447134,-151.0,0.00024557,7]
[366224593,1750133447145,-151.0,0.00024557,7]
[366224595,1750133447156,-151.0,0.00024557,7]
[366224598,1750133447166,-168.55229559,0.00024557,2]
[366224600,1750133447176,-243.0,0.00024565,2]
[366224601,1750133447186,-756.58,0.000246,2]
[366224604,1750133447196,-2000.0,0.000246,30]
[366224606,1750133447207,-2000.0,0.000246,30]
[366224607,1750133447218,-168.0,0.00024622,2]
[366224610,1750133447229,-5000.0,0.00024628,2]
[366224612,1750133447239,-5000.0,0.00024628,2]
[366224614,1750133447249,-5000.0,0.00024628,2]
[366224615,1750133447258,-5000.0,0.00024628,2]
[366224618,1750133447268,-152.096665,0.00024628,7]
[366224620,1750133447278,-151.0,0.00024628,7]
[366224621,1750133447291,-151.0,0.00024628,7]
[366224624,1750133447301,-151.0,0.00024628,7]
[366224626,1750133447311,-205.316712,0.00024628,7]
[366224628,1750133447321,-151.0,0.00024628,7]
[366224630,1750133447331,-151.0,0.00024628,7]
[366224632,1750133447341,-151.0,0.00024628,7]
[366224634,1750133447351,-200.0,0.00024655,2]
[366224636,1750133447361,-7420.18439029,0.00024656,2]
[366224638,1750133447371,-14966.77793483,0.00024656,2]
[366224640,1750133447380,-202.83340905,0.00024656,2]
[366224642,1750133447390,-120873.68826518,0.00024656,15]
[366224897,1750133897842,2000.0,0.000245,120]
[366224945,1750134632356,-3624.11174912,0.00020402,2]
[366224949,1750134632386,-1375.88825088,0.00020402,2]
[366224950,1750134632396,-1178.52,0.00020608,2]
[366224951,1750134632408,-500.0,0.00021122,2]
[366224953,1750134632417,-2139.95867937,0.000219,6]
[366224955,1750134632427,-300.0,0.00022002,2]
[366224957,1750134632436,-1633.3894686,0.00022003,6]
[366224971,1750134638183,-506.56921075,0.00022003,6]
[366224973,1750134638193,-2139.95867935,0.00022107,6]
[366224975,1750134638203,-169.7907339,0.00022202,2]
[366224977,1750134638213,-2139.95867935,0.0002221,6]
[366224979,1750134638223,-332.17,0.00022292,10]
[366224981,1750134638232,-500.0,0.00022301,2]
[366224983,1750134638242,-500.0,0.00022301,2]
[366224984,1750134638251,-500.0,0.00022301,2]
[366224986,1750134638261,-500.0,0.00022301,2]
[366224988,1750134638272,-500.0,0.00022301,2]
[366224990,1750134638282,-500.0,0.00022301,2]
[366224992,1750134638292,-500.0,0.00022301,2]
[366224994,1750134638302,-500.0,0.00022301,2]
[366224996,1750134638312,-500.0,0.00022301,2]
[366224998,1750134638322,-500.0,0.00022301,2]
[366224999,1750134638331,-500.0,0.00022301,2]
[366225000,1750134638352,-500.0,0.00022301,2]
[366225001,1750134638365,-1606.0,0.00022301,2]
[366225002,1750134638376,-1606.0,0.00022301,2]
[366225003,1750134638386,-1606.0,0.00022301,2]
[366225004,1750134638396,-1606.0,0.00022301,2]
[366225005,1750134638407,-500.0,0.00022301,2]
[366225006,1750134638418,-1606.0,0.00022301,2]
[366225007,1750134638429,-1606.0,0.00022301,2]
[366225008,1750134638438,-500.0,0.00022301,2]
[366225009,1750134638448,-1606.0,0.00022301,2]
[366225010,1750134638458,-568.09761595,0.00022301,2]
[366225011,1750134638470,-1606.0,0.00022301,2]
[366225012,1750134638480,-1606.0,0.00022301,2]
[366225013,1750134638491,-500.0,0.00022301,2]
[366225014,1750134638501,-1606.0,0.00022301,2]
[366225015,1750134638510,-1606.0,0.00022301,2]
[366225016,1750134638520,-1606.0,0.00022301,2]
[366225017,1750134638530,-1606.0,0.00022301,2]
[366225018,1750134638540,-1606.0,0.00022301,2]
[366225019,1750134638550,-1606.0,0.00022301,2]
[366225020,1750134638560,-1606.0,0.00022301,2]
[366225021,1750134638569,-500.0,0.00022301,2]
[366225022,1750134638579,-1606.0,0.00022301,2]
[366225023,1750134638589,-1606.0,0.00022301,2]
[366225024,1750134638599,-1606.0,0.00022301,2]
[366225025,1750134638610,-1606.0,0.00022301,2]
[366225026,1750134638620,-1606.0,0.00022301,2]
[366225027,1750134638630,-1606.0,0.00022301,2]
[366225028,1750134638640,-1606.0,0.00022301,2]
[366225029,1750134638650,-1606.0,0.00022301,2]
[366225030,1750134638663,-1606.0,0.00022301,2]
[366225031,1750134638672,-1606.0,0.00022301,2]
[366225032,1750134638682,-1606.0,0.00022301,2]
[366225033,1750134638692,-1606.0,0.00022301,2]
[366225034,1750134638703,-1606.0,0.00022301,2]
[366225035,1750134638713,-1606.0,0.00022301,2]
[366225036,1750134638723,-1606.0,0.00022301,2]
[366225037,1750134638734,-1606.0,0.00022301,2]
[366225038,1750134638744,-1606.0,0.00022301,2]
[366225039,1750134638755,-1606.0,0.00022301,2]
[366225040,1750134638764,-1606.0,0.00022301,2]
[366225041,1750134638774,-1606.0,0.00022301,2]
[366225042,1750134638784,-15.63522482,0.00022301,2]
[366225043,1750134638798,-1590.36477518,0.00022301,2]
[366225044,1750134638808,-1606.0,0.00022301,2]
[366225045,1750134638818,-1606.0,0.00022301,2]
[366225046,1750134638829,-1606.0,0.00022301,2]
[366225047,1750134638838,-1606.0,0.00022301,2]
[366225048,1750134638848,-1606.0,0.00022301,2]
[366225049,1750134638858,-1606.0,0.00022301,2]
[366225050,1750134638869,-1606.0,0.00022301,2]
[366225051,1750134638880,-1606.0,0.00022301,2]
[366225052,1750134638890,-1606.0,0.00022301,2]
[366225053,1750134638900,-1606.0,0.00022301,2]
[366225054,1750134638909,-1606.0,0.00022301,2]
[366225055,1750134638920,-1606.0,0.00022301,2]
[366225056,1750134638930,-1606.0,0.00022301,2]
[366225057,1750134638940,-1606.0,0.00022301,2]
[366225058,1750134638950,-1606.0,0.00022301,2]
[366225059,1750134638964,-1606.0,0.00022301,2]
[366225060,1750134638974,-1606.0,0.00022301,2]
[366225061,1750134638984,-1606.0,0.00022301,2]
[366225062,1750134638995,-1606.0,0.00022301,2]
[366225063,1750134639005,-1606.0,0.00022301,2]
[366225064,1750134639015,-1606.0,0.00022301,2]
[366225065,1750134639026,-1606.0,0.00022301,2]
[366225066,1750134639036,-1606.0,0.00022301,2]
[366225067,1750134639046,-1606.0,0.00022301,2]
[366225068,1750134639056,-1606.0,0.00022301,2]
[366225069,1750134639067,-1606.0,0.00022301,2]
[366225070,1750134639076,-1606.0,0.00022301,2]
[366225071,1750134639086,-1606.0,0.00022301,2]
[366225072,1750134639096,-1606.0,0.00022301,2]
[366225073,1750134639106,-1606.0,0.00022301,2]
[366225074,1750134639117,-286.44,0.00022303,3]
[366225075,1750134639127,-859.35,0.00022303,3]
[366225076,1750134639137,-2139.95867935,0.00022314,7]
[366225077,1750134639147,-573.63941129,0.00022373,2]
[366225078,1750134639158,-500.0,0.00022373,2]
[366225079,1750134639168,-150.0,0.000224,2]
[366225080,1750134639178,-2139.95867935,0.00022417,7]
[366225081,1750134639188,-2357.04,0.00022481,2]
[366225082,1750134639198,-2139.95867935,0.00022521,7]
[366225083,1750134639208,-424.62582665,0.00022532,2]
[366225084,1750134639218,-835.82910252,0.00022532,2]
[366225085,1750134639228,-213.39869953,0.00022532,2]
[366225086,1750134639238,-2139.95867935,0.00022624,7]
[366225087,1750134639248,-2139.95867935,0.00022728,7]
[366225088,1750134639258,-2139.95867935,0.00022831,8]
[366225089,1750134639268,-500.0,0.00022915,2]
[366225090,1750134639278,-500.0,0.00022915,2]
[366225091,1750134639288,-500.0,0.00022915,2]
[366225092,1750134639298,-500.0,0.00022915,2]
[366225093,1750134639308,-500.0,0.00022915,2]
[366225094,1750134639318,-207.4,0.00022915,2]
[366225095,1750134639328,-5000.0,0.00022915,2]
[366225096,1750134639338,-500.0,0.00022915,2]
[366225097,1750134639348,-500.0,0.00022915,2]
[366225098,1750134639359,-500.0,0.00022915,2]
[366225099,1750134639371,-500.0,0.00022915,2]
[366225100,1750134639381,-500.0,0.00022915,2]
[366225101,1750134639542,-500.0,0.00022915,2]
[366225102,1750134639554,-500.0,0.00022915,2]
[366225103,1750134639563,-500.0,0.00022915,2]
[366225104,1750134639574,-1000.0,0.00022921,2]
[366225105,1750134639585,-2139.95867935,0.00022934,8]
[366225106,1750134639594,-572.88,0.00023028,3]
[366225107,1750134639604,-2139.95867935,0.00023038,8]
[366225108,1750134639615,-2139.95867935,0.00023141,8]
[366225109,1750134639625,-2139.95867935,0.00023245,8]
[366225110,1750134639636,-417.67385943,0.000233,15]
[366225111,1750134639646,-500.0,0.00023314,2]
[366225112,1750134639656,-2139.95867935,0.00023348,9]
[366225113,1750134639669,-3239.51478402,0.0002335,2]
[366225114,1750134639679,-2139.95867935,0.00023452,9]
[366225115,1750134639688,-5000.0,0.00023463,2]
[366225116,1750134639699,-965.71906437,0.00023468,2]
[366225117,1750134639708,-2139.95867935,0.00023555,9]
[366225118,1750134639718,-2139.95867935,0.00023659,9]
[366225119,1750134639727,-572.88,0.00023673,3]
[366225120,1750134639738,-2139.95867935,0.00023762,9]
[366225121,1750134639748,-10046.24426458,0.00023765,2]
[366225122,1750134639759,-3710.09219514,0.000238,2]
[366225123,1750134639770,-7483.38896741,0.000238,2]
[366225125,1750134639781,-281399.23709074,0.000238,3]
[366225127,1750134639792,-2139.95867935,0.00023866,10]
[366225129,1750134639803,-420.0,0.00023909,2]
[366225131,1750134639813,-600.0,0.00023934,2]
[366225132,1750134639822,-2139.95867935,0.00023969,10]
[366225133,1750134639833,-5000.0,0.00024011,2]
[366225134,1750134639843,-173.32406817,0.00024027,2]
[366225135,1750134639854,-2139.95867935,0.00024072,10]
[366225136,1750134639865,-594.8296712,0.00024137,2]
[366225137,1750134639876,-156.8421927,0.00024137,2]
[366225138,1750134639887,-158.1932151,0.00024137,2]
[366225139,1750134639896,-163.6583967,0.00024137,2]
[366225140,1750134639905,-715.031187,0.00024162,3]
[366225141,1750134639916,-2139.95867935,0.00024176,10]
[366225142,1750134639928,-424.62582665,0.00024279,10]
[366225143,1750134639939,-2139.95867935,0.00024279,10]
[366225144,1750134639948,-315.45388124,0.00024279,10]
[366225145,1750134639959,-12540.12310952,0.00024279,10]
[366225146,1750134639968,-215.0738,0.00024284,2]
[366225147,1750134639979,-406.0,0.00024298,2]
[366225148,1750134639988,-10046.24426458,0.00024318,2]
[366225150,1750134639999,-3535.56,0.00024355,2]
[366225151,1750134640010,-243.0,0.00024359,2]
[366225152,1750134640021,-2139.95867935,0.00024383,11]
[366225153,1750134640031,-1145.76,0.00024398,3]
[366225154,1750134640041,-2139.95867935,0.00024486,11]
[366225155,1750134640050,-1718.0,0.0002451,7]
[366225156,1750134640060,-151.0,0.00024553,7]
[366225157,1750134640070,-151.0,0.00024553,7]
[366225158,1750134640080,-5000.0,0.00024559,2]
[366225159,1750134640090,-500.0,0.00024573,2]
[366225160,1750134640099,-2139.95867935,0.0002459,11]
[366225161,1750134640109,-1145.76,0.00024646,3]
[366225162,1750134640120,-295.4380979,0.00024655,2]
[366225163,1750134640130,-304512.35186592,0.00024656,15]
[366225164,1750134640144,-556.06826592,0.00024656,15]
[366225165,1750134640477,-373.99794586,0.00024188,2]
[366225166,1750134640486,-1551.47190886,0.00024656,15]
[366225178,1750134643414,-327.27,0.00022301,2]
[366225188,1750134650127,155.1617625,0.00024657,120]
[366225190,1750134682903,155.0,0.00021917,60]
[366225192,1750134729493,2723.2707146,0.00024657,120]
[366225196,1750135165422,-684.64126395,0.00020402,2]
[366225197,1750135165444,-1088.52,0.00020608,2]
[366225198,1750135165467,-500.0,0.00021122,2]
[366225199,1750135165489,-165.83873605,0.00022198,2]
[366225200,1750135203134,2439.0,0.00019,2]
[366225245,1750135691294,150.0,0.00019022,2]
[366225248,1750135741531,307.41,0.0002,2]
[366225250,1750135792420,3186.47389328,0.0002,2]
[366225251,1750135792444,1128.88484277,0.0002,2]
[366225252,1750135798992,300.002263,0.0002,2]
[366225273,1750135838562,-623.28177922,0.00020524,2]
[366225274,1750135838574,-679.11633643,0.00020524,2]
[366226333,1750135880100,203.91103442,0.00019908,2]
[366226336,1750135930284,203.4773433,0.00013699,2]
[366226339,1750136258096,4420.74117346,0.0002465,120]
[366226345,1750136488916,2550.0,0.0002465,120]
[366226353,1750136969226,3632.8881734,0.00019907,2]
[366226363,1750137032751,-3697.60188435,0.00020312,2]
[366226364,1750137032762,-160.0,0.00020517,2]
[366226365,1750137032773,-109.2579639,0.00020593,2]
[366226366,1750137032785,-990.8120361,0.00020593,2]
[366226367,1750137032796,-168.98013642,0.00020807,2]
[366226368,1750137032807,-300.0,0.00020906,2]
[366226369,1750137032817,-257.76751492,0.00020907,2]
[366226370,1750137032827,-508.12154889,0.00020907,2]
[366226371,1750137032837,-548.53425077,0.00020907,2]
[366226372,1750137032847,-548.53425077,0.00020907,2]
[366226373,1750137032859,-375.5130752,0.00020907,2]
[366226374,1750137033017,-173.02117557,0.00020907,2]
[366226375,1750137033027,-548.53425077,0.00020907,2]
[366226376,1750137033036,-548.53425077,0.00020907,2]
[366226377,1750137033046,-548.53425077,0.00020907,2]
[366226378,1750137033056,-548.53425077,0.00020907,2]
[366226379,1750137033066,-548.53425077,0.00020907,2]
[366226380,1750137033076,-548.53425077,0.00020907,2]
[366226381,1750137033086,-548.53425077,0.00020907,2]
[366226382,1750137033095,-548.53425077,0.00020907,2]
[366226383,1750137033105,-548.53425077,0.00020907,2]
[366226384,1750137033115,-548.53425077,0.00020907,2]
[366226385,1750137033125,-548.53425077,0.00020907,2]
[366226386,1750137033134,-548.53425077,0.00020907,2]
[366226387,1750137033144,-548.53425077,0.00020907,2]
[366226388,1750137033153,-548.53425077,0.00020907,2]
[366226389,1750137033163,-548.53425077,0.00020907,2]
[366226390,1750137033173,-548.53425077,0.00020907,2]
[366226391,1750137033183,-548.53425077,0.00020907,2]
[366226392,1750137033192,-548.53425077,0.00020907,2]
[366226393,1750137033202,-548.53425077,0.00020907,2]
[366226394,1750137033212,-548.53425077,0.00020907,2]
[366226395,1750137033222,-548.53425077,0.00020907,2]
[366226396,1750137033233,-548.53425077,0.00020907,2]
[366226397,1750137033244,-548.53425077,0.00020907,2]
[366226398,1750137033254,-548.53425077,0.00020907,2]
[366226399,1750137033264,-548.53425077,0.00020907,2]
[366226400,1750137033274,-548.53425077,0.00020907,2]
[366226401,1750137033284,-548.53425077,0.00020907,2]
[366226402,1750137033293,-548.53425077,0.00020907,2]
[366226403,1750137033304,-548.53425077,0.00020907,2]
[366226404,1750137033314,-548.53425077,0.00020907,2]
[366226405,1750137033324,-548.53425077,0.00020907,2]
[366226406,1750137033334,-548.53425077,0.00020907,2]
[366226407,1750137033344,-548.53425077,0.00020907,2]
[366226408,1750137033353,-548.53425077,0.00020907,2]
[366226409,1750137033363,-548.53425077,0.00020907,2]
[366226410,1750137033373,-548.53425077,0.00020907,2]
[366226411,1750137033383,-548.53425077,0.00020907,2]
[366226412,1750137033393,-548.53425077,0.00020907,2]
[366226413,1750137033403,-548.53425077,0.00020907,2]
[366226414,1750137033413,-548.53425077,0.00020907,2]
[366226415,1750137033423,-548.53425077,0.00020907,2]
[366226416,1750137033433,-548.53425077,0.00020907,2]
[366226417,1750137033443,-548.53425077,0.00020907,2]
[366226418,1750137033452,-548.53425077,0.00020907,2]
[366226419,1750137033463,-548.53425077,0.00020907,2]
[366226420,1750137033473,-548.53425077,0.00020907,2]
[366226421,1750137033483,-548.53425077,0.00020907,2]
[366226422,1750137033493,-548.53425077,0.00020907,2]
[366226423,1750137033503,-548.53425077,0.00020907,2]
[366226424,1750137033514,-548.53425077,0.00020907,2]
[366226425,1750137033523,-548.53425077,0.00020907,2]
[366226426,1750137033533,-548.53425077,0.00020907,2]
[366226427,1750137033542,-548.53425077,0.00020907,2]
[366226428,1750137033552,-548.53425077,0.00020907,2]
[366226429,1750137033562,-548.53425077,0.00020907,2]
[366226430,1750137033572,-548.53425077,0.00020907,2]
[366226431,1750137033582,-548.53425077,0.00020907,2]
[366226432,1750137033593,-548.53425077,0.00020907,2]
[366226433,1750137033602,-548.53425077,0.00020907,2]
[366226434,1750137033613,-548.53425077,0.00020907,2]
[366226435,1750137033624,-530.24977573,0.00020907,2]
[366226436,1750137033634,-530.24977573,0.00020907,2]
[366226437,1750137033644,-530.24977573,0.00020907,2]
[366226438,1750137033655,-530.24977573,0.00020907,2]
[366226439,1750137033666,-530.24977573,0.00020907,2]
[366226440,1750137033677,-530.24977573,0.00020907,2]
[366226441,1750137033687,-530.24977573,0.00020907,2]
[366226442,1750137033698,-530.24977573,0.00020907,2]
[366226443,1750137033708,-530.24977573,0.00020907,2]
[366226444,1750137033721,-530.24977573,0.00020907,2]
[366226445,1750137033731,-530.24977573,0.00020907,2]
[366226446,1750137033741,-530.24977573,0.00020907,2]
[366226447,1750137033751,-530.24977573,0.00020907,2]
[366226448,1750137033764,-530.24977573,0.00020907,2]
[366226449,1750137033775,-530.24977573,0.00020907,2]
[366226450,1750137033785,-530.24977573,0.00020907,2]
[366226451,1750137033797,-530.24977573,0.00020907,2]
[366226452,1750137033808,-530.24977573,0.00020907,2]
[366226453,1750137033818,-530.24977573,0.00020907,2]
[366226454,1750137033828,-530.24977573,0.00020907,2]
[366226455,1750137033839,-530.24977573,0.00020907,2]
[366226456,1750137033850,-530.24977573,0.00020907,2]
[366226457,1750137033860,-530.24977573,0.00020907,2]
[366226458,1750137033871,-530.24977573,0.00020907,2]
[366226459,1750137033893,-530.24977573,0.00020907,2]
[366226460,1750137033908,-530.24977573,0.00020907,2]
[366226461,1750137033919,-530.24977573,0.00020907,2]
[366226462,1750137033929,-2275.58652994,0.00020907,2]
[366226463,1750137038596,-631.84468283,0.00020906,2]
[366226464,1750137038606,-631.84468283,0.00020906,2]
[366226465,1750137038616,-631.84468283,0.00020906,2]
[366226466,1750137038626,-631.84468283,0.00020906,2]
[366226467,1750137038636,-631.84468283,0.00020906,2]
[366226468,1750137038646,-631.84468283,0.00020906,2]
[366226469,1750137038656,-631.84468283,0.00020906,2]
[366226470,1750137038666,-631.84468283,0.00020906,2]
[366226471,1750137038802,-631.84468283,0.00020906,2]
[366226472,1750137038813,-631.84468283,0.00020906,2]
[366226473,1750137038823,-631.84468283,0.00020906,2]
[366226474,1750137038833,-631.84468283,0.00020906,2]
[366226475,1750137038843,-631.84468283,0.00020906,2]
[366226476,1750137038853,-631.84468283,0.00020906,2]
[366226477,1750137038862,-631.84468283,0.00020906,2]
[366226478,1750137038872,-384.39521425,0.00020907,2]
[366226479,1750137038882,-300.0,0.00020908,2]
[366226480,1750137038893,-4446.89183441,0.00020911,2]
[366226483,1750137040837,-250.0,0.00020911,2]
[366226486,1750137040850,-634.0,0.00020911,2]
[366226488,1750137040863,-300.0,0.00020911,2]
[366226492,1750137040893,-377.0600867,0.00020911,2]
[366226494,1750137040905,-2130.50023155,0.00020911,2]
[366226497,1750137040917,-16761.54784734,0.00020911,2]
[366226498,1750137040927,-184.311444,0.00020997,2]
[366226500,1750137040937,-2892.61,0.00021,2]
[366226502,1750137040946,-500.0,0.00021122,2]
[366226505,1750137040956,-500.0,0.0002161,2]
[366226506,1750137040967,-525.17942262,0.00021642,2]
[366226508,1750137040976,-505.78641955,0.00021646,2]
[366226510,1750137040985,-452.94946113,0.000219,6]
[366226512,1750137040995,-452.94946086,0.00022003,6]
[366226514,1750137041005,-452.94946086,0.00022107,6]
[366226516,1750137041014,-508.34097572,0.00022158,2]
[366226518,1750137041024,-452.94946086,0.0002221,6]
[366226520,1750137041034,-156.71109524,0.00022287,2]
[366226522,1750137041043,-500.0,0.00022288,2]
[366226524,1750137041054,-452.94946086,0.00022314,7]
[366226526,1750137041064,-500.0,0.00022315,2]
[366226528,1750137041073,-500.0,0.00022343,2]
[366226530,1750137041084,-500.0,0.0002237,2]
[366226532,1750137041093,-268.6843619,0.00022381,2]
[366226534,1750137041104,-450.57524818,0.00022395,2]
[366226536,1750137041113,-493.82741622,0.00022398,2]
[366226539,1750137041123,-452.94946086,0.00022417,7]
[366226540,1750137041132,-2200.14,0.00022465,2]
[366226543,1750137041143,-424.62582665,0.00022503,2]
[366226544,1750137041155,-160.0,0.00022503,2]
[366226546,1750137041164,-835.82910252,0.00022503,2]
[366226549,1750137041174,-503.37481712,0.00022503,2]
[366226551,1750137041187,-342.24959139,0.00022503,2]
[366226552,1750137041196,-229.94211981,0.00022503,2]
[366226553,1750137041205,-452.94946086,0.00022521,7]
[366226554,1750137041215,-179.75012624,0.00022624,7]
[366226617,1750137043768,-633.48993125,0.00020697,2]
[366226619,1750137043781,-1943.30519322,0.00020697,2]
[366226646,1750137046650,-2423.20487553,0.00020697,2]
[366226647,1750137046659,-296.47976006,0.00020906,2]
[366226648,1750137046760,-203.52023994,0.00020906,2]
[366226649,1750137046771,-500.0,0.00020906,2]
[366226650,1750137046780,-500.0,0.00020906,2]
[366226651,1750137046790,-500.0,0.00020906,2]
[366226652,1750137046800,-500.0,0.00020906,2]
[366226653,1750137046810,-500.0,0.00020906,2]
[366226654,1750137046820,-500.0,0.00020906,2]
[366226655,1750137046829,-500.0,0.00020906,2]
[366226656,1750137046838,-500.0,0.00020906,2]
[366226657,1750137046848,-500.0,0.00020906,2]
[366226658,1750137046859,-500.0,0.00020906,2]
[366226659,1750137046869,-500.0,0.00020906,2]
[366226660,1750137046880,-500.0,0.00020906,2]
[366226661,1750137046890,-500.0,0.00020906,2]
[366226662,1750137046899,-500.0,0.00020906,2]
[366226663,1750137046910,-500.0,0.00020906,2]
[366226664,1750137046919,-500.0,0.00020906,2]
[366226665,1750137046929,-500.0,0.00020906,2]
[366226666,1750137046938,-500.0,0.00020906,2]
[366226667,1750137046948,-500.0,0.00020906,2]
[366226668,1750137046958,-500.0,0.00020906,2]
[366226669,1750137046967,-500.0,0.00020906,2]
[366226670,1750137046977,-500.0,0.00020906,2]
[366226671,1750137046987,-500.0,0.00020906,2]
[366226672,1750137046998,-500.0,0.00020906,2]
[366226673,1750137047007,-500.0,0.00020906,2]
[366226674,1750137047016,-500.0,0.00020906,2]
[366226675,1750137047026,-500.0,0.00020906,2]
[366226676,1750137047035,-500.0,0.00020906,2]
[366226677,1750137047046,-500.0,0.00020906,2]
[366226678,1750137047056,-500.0,0.00020906,2]
[366226679,1750137047065,-500.0,0.00020906,2]
[366226680,1750137047075,-500.0,0.00020906,2]
[366226681,1750137047084,-500.0,0.00020906,2]